bitfinex/quotes_SOLUSD_20241209
["timestamp","ask_amount","ask_price","bid_price","bid_amount"]
[1733736683064,6.312,226.89,226.78,33.44441615]
[1733736683260,6.312,226.89,226.79,0.66099352]
[1733736683482,6.312,226.89,226.79,34.10540967]
[1733736683655,8.7798,226.99,226.81,33.44441615]
[1733736683860,8.7798,226.99,226.82,0.66091259]
[1733736685155,23.776884,226.98,226.77,0.66100949]
[1733736685452,23.776884,226.94,226.74,0.6611264]
[1733736685863,6.3333,226.87,226.7,0.66127853]
[1733736686166,20.0,226.84,226.7,0.66127853]
[1733736686467,20.0,226.84,226.72,33.44441615]
[1733736686774,20.0,226.84,226.73,34.10559885]
[1733736687286,6.3333,226.87,226.78,57.22130015]
[1733736687491,8.8439,226.93,226.8,33.44441615]
[1733736687659,8.8439,226.93,226.81,0.66094645]
[1733736688698,20.0,226.9,226.81,0.66094645]
[1733736689990,20.0,226.9,226.78,0.66103325]
[1733736690194,20.0,226.9,226.73,0.66115644]
[1733736690388,20.0,226.86,226.73,0.66115644]
[1733736690970,20.0,226.9,226.73,0.66115644]
[1733736691282,20.0,226.9,226.76,33.44441615]
[1733736691591,20.0,226.9,226.77,0.6610451]
[1733736692462,23.776884,226.89,226.77,0.6610451]
[1733736692761,6.2787,226.85,226.68,0.6612364]
[1733736692959,20.0,226.82,226.68,0.6612364]
[1733736693569,20.0,226.82,226.69,0.66135041]
[1733736693973,2.4598,226.81,226.69,0.66135041]
[1733736694685,2.4598,226.81,226.64,0.66141202]
[1733736695189,2.4598,226.81,226.65,23.776884]
[1733736695361,2.4598,226.81,226.66,0.66141117]
[1733736696097,20.0,226.77,226.66,0.66141117]
[1733736696391,20.0,226.73,226.61,0.66153413]
[1733736697163,20.0,226.73,226.62,33.44441615]
[1733736697377,6.5536,226.76,226.67,33.44441615]
[1733736697587,2.4598,226.81,226.68,34.10576804]
[1733736697768,2.4598,226.81,226.7,33.44441615]
[1733736697969,2.4598,226.81,226.71,0.66126477]
[1733736698182,2.4598,226.81,226.72,23.776884]
[1733736698378,6.5536,226.82,226.73,34.10561939]
[1733736698561,6.5536,226.82,226.73,0.66120324]
[1733736698767,6.5536,226.82,226.71,33.44441615]
[1733736698983,6.5536,226.82,226.72,0.66123062]
[1733736699766,2.6682,226.87,226.75,33.44441615]
[1733736699962,2.6682,226.87,226.76,0.66106681]
[1733736700760,2.6682,226.87,226.76,34.10548296]
[1733736700966,2.6682,226.87,226.76,0.66106681]
[1733736701189,20.0,226.85,226.77,0.66110835]
[1733736701373,6.6437,226.88,226.78,44.32417844]
[1733736701574,6.2339,226.94,226.83,20.54729444]
[1733736701772,6.2339,226.94,226.85,23.776884]
[1733736701994,6.2339,226.94,226.86,0.66083216]
[1733736704106,20.0,226.97,226.86,21.2081266]
[1733736704277,6.2339,227.0,226.86,0.66083216]
[1733736705484,20.0,226.97,226.86,0.66083216]
[1733736706000,20.0,226.97,226.87,0.66084415]
[1733736706907,20.0,226.97,226.88,0.66083308]
[1733736707910,6.2339,227.0,226.9,23.776884]
[1733736708193,6.2339,227.0,226.92,23.776884]
[1733736708370,6.2339,227.0,226.93,0.66062064]
[1733736709178,6.2759,227.07,226.94,23.776884]
[1733736709376,6.2759,227.07,226.95,0.66051513]
[1733736709583,6.2759,227.07,226.96,23.776884]
[1733736709797,6.2759,227.07,226.97,0.66050414]
[1733736710987,6.2759,227.07,226.93,20.54729444]
[1733736710988,6.2759,227.07,226.98,0.66059073]
[1733736711195,20.0,227.04,226.92,0.66063253]
[1733736711871,23.776884,227.03,226.92,0.66063253]
[1733736712075,23.776884,227.03,226.85,20.54729444]
[1733736712076,20.0,227.0,226.85,20.54729444]
[1733736712307,20.0,227.0,226.88,20.54729444]
[1733736712478,20.0,227.0,226.89,21.20799181]
[1733736712679,20.0,227.04,226.91,20.54729444]
[1733736712905,20.0,227.04,226.92,0.66061892]
[1733736715406,20.0,227.04,226.93,23.776884]
[1733736715607,20.0,227.04,226.94,0.66056887]
[1733736716878,20.0,227.04,226.94,21.20786331]
[1733736717185,20.0,227.04,226.95,20.54729444]
[1733736717391,6.2759,227.07,226.99,23.776884]
[1733736717716,6.2759,227.07,227.0,0.66039027]
[1733736718691,6.027,227.13,227.0,21.20768471]
[1733736718896,20.0,227.1,227.0,21.20768471]
[1733736719313,20.0,227.1,227.0,0.66039027]
[1733736720195,6.027,227.13,227.04,20.54729444]
[1733736720402,6.027,227.13,227.05,21.20754195]
[1733736721005,6.027,227.13,227.06,44.32417844]
[1733736721217,6.027,227.13,227.07,0.6601553]
[1733736721595,6.6628,227.19,227.07,0.6601553]
[1733736722246,20.0,227.16,227.07,0.6601553]
[1733736723005,20.0,227.16,227.08,0.66028837]
[1733736723335,20.0,227.12,227.02,0.6603504]
[1733736723711,20.0,227.08,226.93,0.66044477]
[1733736724108,23.776884,227.07,226.93,0.66044477]
[1733736724313,20.0,227.04,226.93,0.66044477]
[1733736724509,23.776884,227.03,226.93,0.66044477]
[1733736724735,6.6628,226.99,226.87,0.66076156]
[1733736724920,20.0,226.96,226.87,0.66076156]
[1733736725236,6.6628,226.99,226.91,20.54729444]
[1733736725403,2.6347,227.1,226.92,0.66059953]
[1733736725732,20.0,227.06,226.96,20.54729444]
[1733736725916,20.0,227.06,226.97,21.20778307]
[1733736726434,20.0,227.06,226.98,20.54729444]
[1733736726630,20.0,227.06,226.99,0.66044705]
[1733736727135,6.5434,227.09,226.99,0.66044705]
[1733736727737,6.5434,227.09,226.99,21.20774149]
[1733736728841,6.5434,227.09,227.02,20.54729444]
[1733736729005,6.5434,227.15,227.04,20.54729444]
[1733736729333,6.5434,227.15,227.05,0.66023691]
[1733736730532,6.5434,227.15,227.05,21.20753135]
[1733736730838,6.5434,227.15,227.09,20.54729444]
[1733736731030,6.3089,227.2,227.1,0.66014788]
[1733736731228,6.3089,227.2,227.1,21.20744232]
[1733736731941,6.3089,227.2,227.1,0.66014788]
[1733736732440,6.3089,227.2,227.05,0.66023653]
[1733736732602,23.776884,227.19,227.0,0.6603791]
[1733736733138,20.0,227.16,227.01,20.54729444]
[1733736733316,20.0,227.16,227.02,21.20760197]
[1733736733515,20.0,227.16,227.04,20.54729444]
[1733736733738,20.0,227.16,227.05,0.66025272]
[1733736734237,6.3089,227.2,227.07,20.54729444]
[1733736734238,20.0,227.17,227.07,20.54729444]
[1733736734419,20.0,227.17,227.08,0.6601599]
[1733736734612,6.3089,227.2,227.09,20.54729444]
[1733736734813,6.3089,227.2,227.1,0.66012383]
[1733736736114,20.0,227.17,227.1,0.66012383]
[1733736736642,20.0,227.17,227.05,0.66023818]
[1733736736929,20.0,227.17,227.05,21.20753262]
[1733736737139,20.0,227.17,227.06,44.32417844]
[1733736737353,20.0,227.17,227.07,21.20747017]
[1733736737543,20.0,227.17,227.09,20.54729444]
[1733736737747,20.0,227.17,227.1,0.66012438]
[1733736738245,6.3089,227.2,227.1,0.66012438]
[1733736738544,6.3089,227.2,227.11,44.32417844]
[1733736738745,6.3089,227.2,227.12,21.20732473]
[1733736738927,6.3089,227.2,227.12,0.66003029]
[1733736739846,6.3089,227.2,227.13,0.66010815]
[1733736740727,6.3089,227.2,227.14,0.66009842]
[1733736740952,6.3089,227.2,227.09,0.66013083]
[1733736741838,6.3089,227.2,227.11,20.54729444]
[1733736742041,6.3089,227.2,227.13,44.32417844]
[1733736742245,6.3089,227.2,227.14,0.65996111]
[1733736742741,2.9481253,227.24,227.14,0.65996111]
[1733736743146,2.9481253,227.24,227.15,23.776884]
[1733736743317,2.9481253,227.24,227.16,0.65989986]
[1733736743517,0.5189253,227.24,227.19,20.54729444]
[1733736743735,0.5189253,227.24,227.2,0.65984177]
[1733736746465,0.5189253,227.24,227.16,0.65993661]
[1733736746756,0.5189253,227.24,227.11,0.66009642]
[1733736746968,0.5189253,227.24,227.12,20.54729444]
[1733736747149,0.5189253,227.24,227.13,0.65998999]
[1733736748247,6.6019,227.23,227.14,0.66008258]
[1733736748440,20.0,227.2,227.08,0.6601708]
[1733736748752,2.5892,227.19,227.08,0.6601708]
[1733736749163,2.5892,227.19,226.95,26.40649139]
[1733736749164,6.6019,227.18,227.02,0.6603148]
[1733736749471,20.0,227.14,227.02,0.6603148]
[1733736750135,6.6019,227.18,226.94,15.80614569]
[1733736750136,20.0,227.15,227.03,21.20766084]
[1733736750732,20.0,227.15,227.05,20.54729444]
[1733736750965,20.0,227.15,227.06,0.66027402]
[1733736751383,6.6019,227.18,227.07,44.32417844]
[1733736751539,6.6019,227.18,227.09,20.54729444]
[1733736751859,6.6019,227.18,227.1,0.66020229]
[1733736752657,6.6019,227.18,227.11,0.66015005]
[1733736752846,6.6019,227.18,227.11,21.20744449]
[1733736754357,6.6019,227.18,227.12,20.54729444]
[1733736754542,6.5271,227.23,227.13,21.20731593]
[1733736754750,6.5271,227.23,227.13,0.66002149]
[1733736755570,6.5271,227.23,227.11,20.54729444]
[1733736755571,6.5271,227.23,227.14,0.66004487]
[1733736756175,6.5271,227.23,227.15,20.54729444]
[1733736756374,6.5271,227.23,227.16,0.65993448]
[1733736756669,0.5189253,227.24,227.17,44.32417844]
[1733736756845,0.5189253,227.24,227.18,21.20714318]
[1733736757273,2.3995,227.29,227.28,130.0904747]
[1733736757477,2.3995,227.34,227.22,20.54729444]
[1733736757657,2.3995,227.34,227.23,21.20701702]
[1733736757862,2.3995,227.34,227.23,0.65972258]
[1733736758251,2.3995,227.34,227.23,21.20701702]
[1733736758969,2.3995,227.34,227.23,0.65972258]
[1733736759769,2.3995,227.34,227.22,0.65974626]
[1733736760175,2.3995,227.34,227.07,2.387]
[1733736760176,20.0,227.3,227.15,0.65993667]
[1733736760339,20.0,227.26,227.15,0.65993667]
[1733736761567,20.0,227.26,227.16,0.65997837]
[1733736761763,20.0,227.26,227.17,23.776884]
[1733736761947,20.0,227.26,227.18,0.65996439]
[1733736763987,20.0,227.26,227.19,23.776884]
[1733736764276,20.0,227.26,227.2,0.65990706]
[1733736764477,6.3734,227.29,227.2,0.65990706]
[1733736764478,6.3734,227.29,227.21,23.776884]
[1733736764680,6.3734,227.29,227.23,23.776884]
[1733736764873,8.9163,227.34,227.24,0.65976135]
[1733736766074,20.0,227.31,227.24,0.65976135]
[1733736766553,20.0,227.31,227.19,23.776884]
[1733736766750,20.0,227.31,227.21,23.776884]
[1733736766947,20.0,227.31,227.22,0.65988506]
[1733736767692,8.9163,227.34,227.22,0.65988506]
[1733736767989,8.9163,227.34,227.23,23.776884]
[1733736768286,8.9163,227.34,227.24,0.65974353]
[1733736768790,8.9163,227.34,227.25,23.776884]
[1733736768973,9.0167,227.39,227.28,20.54729444]
[1733736769159,9.0167,227.39,227.27,23.776884]
[1733736769160,9.0167,227.39,227.29,24.43644761]
[1733736770259,20.0,227.36,227.29,24.43644761]
[1733736770882,20.0,227.36,227.3,20.54729444]
[1733736771070,9.7994253,227.47,227.34,44.32417844]
[1733736771273,9.7994253,227.47,227.35,0.65939247]
[1733736772660,9.7994253,227.47,227.36,44.32417844]
[1733736772861,9.7994253,227.47,227.37,0.65937001]
[1733736773473,9.7994253,227.47,227.38,23.776884]
[1733736773671,9.7994253,227.47,227.39,0.65930654]
[1733736773879,9.7994253,227.47,227.31,23.776884]
[1733736774067,9.7994253,227.47,227.31,0.65951779]
[1733736774899,20.0,227.44,227.31,0.65951779]
[1733736775204,20.0,227.44,227.27,0.65963028]
[1733736776075,20.0,227.44,227.28,0.6596022]
[1733736777015,20.0,227.44,227.29,23.776884]
[1733736777188,20.0,227.44,227.3,0.65957773]
[1733736777983,20.0,227.44,227.31,23.776884]
[1733736778208,20.0,227.44,227.3,0.65957773]
[1733736779880,20.0,227.44,227.26,23.776884]
[1733736780075,20.0,227.44,227.28,23.776884]
[1733736780289,11.65432716,227.47,227.26,0.65967482]
[1733736780290,20.0,227.4,227.26,0.65967482]
[1733736780707,23.776884,227.39,227.26,0.65967482]
[1733736780912,20.0,227.36,227.26,0.65967482]
[1733736781082,8.6386,227.35,227.21,0.65981205]
[1733736781417,20.0,227.32,227.21,0.65981205]
[1733736782004,20.0,227.32,227.17,0.6599391]
[1733736783115,23.776884,227.31,227.17,0.6599391]
[1733736783304,20.0,227.24,227.15,0.66006648]
[1733736784094,20.0,227.24,227.17,20.54729444]
[1733736784298,20.0,227.24,227.18,0.65991628]
[1733736784713,8.6524,227.27,227.18,0.65991628]
[1733736785020,8.6524,227.27,227.18,21.20721072]
[1733736785192,8.6524,227.27,227.19,44.32417844]
[1733736785389,8.6524,227.27,227.21,23.776884]
[1733736785608,8.6542,227.36,227.23,23.776884]
[1733736785812,8.6542,227.36,227.25,23.776884]
[1733736786049,8.6542,227.36,227.26,0.65968926]
[1733736787092,20.0,227.33,227.26,0.65968926]
[1733736787513,20.0,227.33,227.27,0.65979866]
[1733736788604,20.0,227.33,227.28,0.6597133]
[1733736789298,20.0,227.33,227.25,0.65971634]
[1733736789599,20.0,227.33,227.21,0.65982001]
[1733736790411,20.0,227.33,227.18,0.65993121]
[1733736790921,20.0,227.29,227.18,0.65993121]
[1733736791117,20.0,227.25,227.15,20.54729444]
[1733736791418,20.0,227.25,227.16,0.65998745]
[1733736792414,20.0,227.25,227.13,0.66007481]
[1733736792916,20.0,227.25,227.14,20.54729444]
[1733736793113,20.0,227.25,227.15,0.66002508]
[1733736793292,20.0,227.25,227.15,21.20731952]
[1733736793488,20.0,227.25,227.16,23.776884]
[1733736793711,20.0,227.25,227.17,0.66003499]
[1733736794116,20.0,227.25,227.14,23.776884]
[1733736794427,20.0,227.25,227.15,0.66008006]
[1733736794724,20.0,227.25,227.16,23.776884]
[1733736794929,20.0,227.25,227.17,0.66001781]
[1733736795093,20.0,227.25,227.13,0.66004045]
[1733736795296,20.0,227.25,227.09,0.66016724]
[1733736795804,20.0,227.21,227.09,0.66016724]
[1733736795990,20.0,227.21,227.05,0.66030568]
[1733736796193,20.0,227.21,227.07,20.54729444]
[1733736796515,20.0,227.25,227.08,0.66022543]
[1733736796700,20.0,227.21,227.02,20.54729444]
[1733736796900,20.0,227.15,227.03,0.66038996]
[1733736797821,20.0,227.15,227.04,0.6604418]
[1733736798224,20.0,227.15,227.05,44.32417844]
[1733736798518,20.0,227.15,227.06,0.66029757]
[1733736800121,20.0,227.15,227.03,23.776884]
[1733736800416,20.0,227.15,227.04,0.66046794]
[1733736801007,20.0,227.15,227.01,0.66045853]
[1733736801920,6.3248,227.18,227.02,20.54729444]
[1733736802099,6.3248,227.18,227.05,20.54729444]
[1733736802295,6.3248,227.18,227.06,0.66026577]
[1733736802517,6.3248,227.18,227.07,23.776884]
[1733736802720,6.3248,227.18,227.08,0.66029175]
[1733736803293,20.0,227.15,227.08,0.66029175]
[1733736803525,20.0,227.15,227.04,23.776884]
[1733736803698,20.0,227.15,227.05,0.66031403]
[1733736804692,20.0,227.15,227.0,0.66046276]
[1733736805601,20.0,227.15,227.0,21.2077572]
[1733736805834,20.0,227.11,227.0,0.66046276]
[1733736806061,2.5488,227.1,227.01,0.66056039]
[1733736806328,2.5488,227.1,226.97,0.66055839]
[1733736807008,2.5488,227.1,226.98,23.776884]
[1733736807208,2.5488,227.1,226.99,0.66058232]
[1733736809505,20.0,227.06,226.99,0.66058232]
[1733736809702,20.0,227.06,226.93,0.6606631]
[1733736810841,20.0,227.06,226.89,0.66081806]
[1733736811140,20.0,227.01,226.89,0.66081806]
[1733736811720,20.0,227.01,226.85,0.66092428]
[1733736812430,2.6497,227.0,226.85,0.66092428]
[1733736812630,20.0,226.96,226.86,0.66096973]
[1733736812943,20.0,226.96,226.83,20.54729444]
[1733736813263,20.0,226.96,226.85,23.776884]
[1733736813468,20.0,226.96,226.86,0.66089185]
[1733736814259,20.0,226.96,226.84,0.66096961]
[1733736814451,20.0,226.96,226.81,20.54729444]
[1733736814643,20.0,226.96,226.83,20.54729444]
[1733736814839,20.0,226.96,226.84,0.66092553]
[1733736815740,6.4979,226.99,226.89,20.54729444]
[1733736816100,6.4979,226.99,226.9,0.66079427]
[1733736816261,6.4979,226.99,226.86,0.66079427]
[1733736817133,6.4979,226.99,226.82,20.54729444]
[1733736817134,6.4979,226.99,226.83,0.66098159]
[1733736817461,6.4979,226.99,226.84,20.54729444]
[1733736817659,20.0,226.96,226.86,23.776884]
[1733736817870,20.0,226.96,226.87,0.66090878]
[1733736818165,20.0,226.96,226.84,0.66090469]
[1733736820142,20.0,226.96,226.85,23.776884]
[1733736820341,6.4979,226.99,226.9,23.776884]
[1733736820663,6.4979,226.99,226.91,0.66075548]
[1733736820864,6.4979,226.99,226.89,0.660876]
[1733736821738,20.0,226.96,226.86,0.6608811]
[1733736821938,20.0,226.96,226.81,21.2083057]
[1733736822744,20.0,226.96,226.82,20.54729444]
[1733736822946,20.0,226.96,226.84,23.776884]
[1733736823164,20.0,226.96,226.85,0.66099183]
[1733736824467,20.0,226.96,226.82,0.66097973]
[1733736825646,20.0,226.96,226.79,0.6610831]
[1733736825847,2.6011,226.95,226.8,23.776884]
[1733736826042,2.6011,226.95,226.81,0.66107071]
[1733736829689,20.0,226.91,226.78,23.776884]
[1733736829849,20.0,226.91,226.79,0.66114462]
[1733736830277,20.0,226.91,226.8,23.776884]
[1733736830588,6.3238,226.94,226.82,44.32417844]
[1733736830749,6.3238,226.94,226.83,0.66096015]
[1733736832901,6.3238,226.94,226.81,0.66101513]
[1733736833183,20.0,226.91,226.84,0.66101513]
[1733736833378,20.0,226.91,226.79,0.66106181]
[1733736834373,20.0,226.91,226.8,0.66109039]
[1733736834578,20.0,226.91,226.77,44.32417844]
[1733736834882,20.0,226.91,226.79,23.776884]
[1733736835064,20.0,226.91,226.8,0.66109234]
[1733736835668,20.0,226.91,226.77,23.776884]
[1733736835858,20.0,226.91,226.78,0.66118775]
[1733736837577,20.0,226.91,226.79,23.776884]
[1733736837753,20.0,226.91,226.8,0.66108145]
[1733736838554,8.18220327,226.94,226.81,23.776884]
[1733736838768,8.18220327,226.94,226.82,0.66103412]
[1733736840063,20.0,226.91,226.82,0.66103412]
[1733736840483,6.3238,226.94,226.83,23.776884]
[1733736840655,6.3238,226.94,226.85,23.776884]
[1733736840860,6.3238,226.94,226.86,0.66089629]
[1733736841465,6.3238,226.94,226.78,0.66090633]
[1733736841658,6.3238,226.94,226.79,23.776884]
[1733736841956,6.3238,226.94,226.81,23.776884]
[1733736842160,20.0,226.91,226.8,0.66110947]
[1733736842360,20.0,226.91,226.77,23.776884]
[1733736842597,20.0,226.91,226.79,23.776884]
[1733736842779,20.0,226.91,226.8,0.66111923]
[1733736843660,20.0,226.91,226.77,0.66114328]
[1733736844990,20.0,226.91,226.78,0.6612227]
[1733736845291,20.0,226.91,226.78,13.50029593]
[1733736845506,8.14648896,226.94,226.79,12.83907323]
[1733736845803,6.3238,226.94,226.84,12.83907323]
[1733736845967,6.3238,226.94,226.87,23.776884]
[1733736846167,6.3238,226.94,226.88,0.66083777]
[1733736847076,2.6011,226.95,226.88,0.66083777]
[1733736847765,6.343,226.99,226.89,23.776884]
[1733736847972,6.343,226.99,226.9,13.49988431]
[1733736848179,6.343,226.99,226.9,0.66081108]
[1733736848870,6.343,226.99,226.91,0.66078433]
[1733736849083,6.343,226.99,226.92,23.776884]
[1733736849287,2.5762,227.01,226.94,23.776884]
[1733736849500,2.5762,227.01,226.95,0.66065695]
[1733736849667,2.5762,227.01,226.92,0.66072576]
[1733736850782,2.5762,227.01,226.93,0.66076919]
[1733736851222,2.5762,227.01,226.94,23.776884]
[1733736851395,6.6432,227.05,226.96,23.776884]
[1733736851708,6.6432,227.05,226.97,0.66058325]
[1733736852325,6.6432,227.05,226.93,0.66064264]
[1733736852480,6.6432,227.05,226.9,23.776884]
[1733736852682,6.6432,227.05,226.89,0.6607468]
[1733736852683,6.6432,227.05,226.91,0.66076716]
[1733736852889,20.0,227.02,226.86,0.66083683]
[1733736853106,2.6202,227.01,226.86,0.66083683]
[1733736853310,2.6202,227.01,226.84,20.5158233]
[1733736853481,2.6202,227.01,226.86,20.5158233]
[1733736853684,2.6202,227.01,226.89,20.5158233]
[1733736854000,2.6202,227.01,226.92,20.5158233]
[1733736854184,6.6432,227.05,226.94,20.5158233]
[1733736854524,6.6432,227.05,226.96,23.776884]
[1733736854812,6.6432,227.05,226.97,0.66055975]
[1733736855183,2.655,227.08,226.98,23.776884]
[1733736855382,2.655,227.08,227.05,137.0]
[1733736855603,2.655,227.08,227.06,0.66040734]
[1733736855809,6.6659,227.1,227.06,0.66040734]
[1733736856716,6.6659,227.1,227.02,23.776884]
[1733736856880,6.6659,227.1,226.99,0.66046658]
[1733736857214,20.0,227.07,226.99,0.66046658]
[1733736857612,20.0,227.07,226.96,23.776884]
[1733736857782,20.0,227.07,226.98,23.776884]
[1733736857983,20.0,227.07,226.96,0.66058834]
[1733736858636,20.0,227.07,226.91,0.66067496]
[1733736858931,2.6381,227.06,226.91,0.66067496]
[1733736859241,20.0,227.02,226.88,0.66082488]
[1733736859600,20.0,227.02,226.86,0.66091624]
[1733736860591,20.0,227.02,226.87,0.66098191]
[1733736860916,20.0,227.02,226.84,20.5158233]
[1733736861250,20.0,227.02,226.85,0.66088895]
[1733736862037,20.0,227.02,226.86,23.776884]
[1733736862235,20.0,227.02,226.87,0.66095961]
[1733736862619,20.0,227.02,226.88,23.776884]
[1733736862821,20.0,227.02,226.89,0.66079741]
[1733736863357,20.0,227.02,226.9,23.776884]
[1733736863650,6.1239,227.05,226.92,23.776884]
[1733736863851,6.1239,227.05,226.87,20.5158233]
[1733736864161,6.1239,227.05,226.93,23.776884]
[1733736864325,6.1239,227.05,226.94,0.66069826]
[1733736864648,2.6381,227.06,226.95,44.2927073]
[1733736864850,2.6381,227.06,226.96,0.66058902]
[1733736865636,2.6381,227.06,226.97,23.776884]
[1733736865956,6.2491,227.1,226.98,0.66053565]
[1733736866541,6.2491,227.1,226.95,23.776884]
[1733736866741,20.0,227.07,226.96,0.66065262]
[1733736868361,20.0,227.07,226.97,23.776884]
[1733736868537,6.2491,227.1,226.99,23.776884]
[1733736868736,6.2491,227.1,227.0,0.66050771]
[1733736871342,20.0,227.07,226.97,23.776884]
[1733736871543,20.0,227.07,226.98,0.66062005]
[1733736871850,20.0,227.07,226.9,8.8796]
[1733736871851,20.0,227.07,226.93,0.6606773]
[1733736872050,20.0,227.07,226.9,0.66077329]
[1733736872285,20.0,227.03,226.9,0.66077329]
[1733736873186,20.0,227.07,226.91,0.66088045]
[1733736874053,20.0,227.07,226.92,0.66079515]
[1733736875183,20.0,227.07,226.93,0.66078742]
[1733736876255,20.0,227.07,226.94,0.66075894]
[1733736877053,6.2491,227.1,226.95,23.776884]
[1733736877257,6.2491,227.1,226.97,23.776884]
[1733736877484,6.2491,227.1,226.98,0.66063999]
[1733736877885,2.5594,227.11,226.99,23.776884]
[1733736878190,2.5594,227.11,227.0,0.660511]
[1733736878695,2.5594,227.11,227.01,23.776884]
[1733736878984,8.7634,227.16,227.02,0.66045353]
[1733736879156,8.7634,227.16,227.03,23.776884]
[1733736879363,8.7634,227.16,227.05,23.776884]
[1733736879588,8.7634,227.16,227.06,0.66036042]
[1733736879785,2.4583,227.16,227.06,0.66036042]
[1733736880000,7.90453459,227.21,227.07,23.776884]
[1733736880201,7.90453459,227.21,227.08,0.66036274]
[1733736880399,6.1172,227.21,227.09,23.776884]
[1733736880605,6.1172,227.21,227.1,0.66027868]
[1733736880902,6.1172,227.21,227.06,0.66030091]
[1733736881072,6.1172,227.21,227.07,23.776884]
[1733736881275,6.1172,227.21,227.08,0.66035455]
[1733736881469,6.1172,227.21,227.03,23.776884]
[1733736881698,20.0,227.17,227.01,0.66045352]
[1733736882005,20.0,227.17,226.98,0.66057144]
[1733736882211,20.0,227.13,226.98,0.66057144]
[1733736882514,2.514,227.12,226.96,6.4024]
[1733736882809,20.0,227.08,226.92,3.18680296]
[1733736883010,20.0,227.08,226.9,7.0701358]
[1733736883177,20.0,227.08,226.9,6.4093]
[1733736883579,20.0,227.04,226.88,0.66088324]
[1733736884009,20.0,227.04,226.87,2.5261]
[1733736884314,20.0,226.96,226.85,0.66096251]
[1733736884611,20.0,226.96,226.82,21.17685884]
[1733736884776,20.0,226.96,226.82,0.66103554]
[1733736887077,20.0,226.96,226.83,23.776884]
[1733736887396,20.0,226.96,226.82,0.66103554]
[1733736888006,20.0,226.96,226.82,21.17685884]
[1733736889035,6.1682,226.99,226.82,21.17685884]
[1733736889036,6.1682,226.99,226.83,23.776884]
[1733736889244,6.1682,226.99,226.85,23.776884]
[1733736890025,6.1682,226.99,226.84,0.66098157]
[1733736890026,6.1682,226.99,226.87,23.776884]
[1733736890213,20.0,226.96,226.89,23.776884]
[1733736890416,20.0,226.96,226.9,0.66085558]
[1733736890709,6.1682,226.99,226.91,23.776884]
[1733736890916,2.514,227.03,226.91,23.776884]
[1733736891501,2.514,227.03,226.86,20.5158233]
[1733736891700,2.514,227.03,226.87,23.776884]
[1733736891903,20.0,227.01,226.87,44.95363467]
[1733736892236,20.0,227.01,226.9,20.5158233]
[1733736892405,2.514,227.03,226.92,44.2927073]
[1733736892597,2.514,227.03,226.93,0.66075132]
[1733736892798,6.3163,227.04,226.93,0.66075132]
[1733736893406,6.3163,227.04,226.84,20.5158233]
[1733736893740,6.3163,227.04,226.81,2.5261]
[1733736893741,20.0,227.0,226.85,0.66099517]
[1733736894325,20.0,227.01,226.91,20.5158233]
[1733736894537,20.0,227.01,226.92,0.6607667]
[1733736894826,6.3163,227.04,226.94,23.776884]
[1733736895059,6.3163,227.04,226.94,24.43763034]
[1733736896549,6.3163,227.04,226.94,0.66074634]
[1733736896844,6.3163,227.04,226.93,23.776884]
[1733736897017,20.0,227.01,226.88,20.5158233]
[1733736897212,20.0,227.01,226.9,20.5158233]
[1733736897446,20.0,227.01,226.91,24.43769457]
[1733736899542,20.0,227.01,226.89,23.776884]
[1733736899745,20.0,227.01,226.89,44.95358307]
[1733736900540,20.0,227.01,226.89,24.43775977]
[1733736901728,20.0,227.01,226.88,23.776884]
[1733736901954,20.0,227.01,226.87,0.66090084]
[1733736902457,2.6036,227.0,226.84,20.5158233]
[1733736902631,2.6036,227.0,226.86,20.5158233]
[1733736903521,2.6036,227.0,226.86,24.43786318]